bitfinex/quotes_BTCUSD_20250623
["timestamp","ask_amount","ask_price","bid_price","bid_amount"]
[1750661136580,0.72675786,101990.0,101980.0,0.06703]
[1750661136787,0.77171786,101990.0,101980.0,0.06703]
[1750661136997,0.75717701,101990.0,101980.0,0.06703]
[1750661137456,0.73879831,101990.0,101980.0,0.06703]
[1750661137654,0.71221058,101990.0,101980.0,0.06703]
[1750661137893,0.75717058,101990.0,101980.0,0.06703]
[1750661139029,0.79129831,101990.0,101980.0,0.003]
[1750661139242,0.99720152,101990.0,101980.0,0.003]
[1750661139666,0.99720152,101990.0,101980.0,0.035]
[1750661139873,0.99030951,101990.0,101980.0,0.035]
[1750661140074,0.99719842,101990.0,101980.0,0.0654]
[1750661140491,0.99719797,101990.0,101980.0,0.0654]
[1750661140694,0.80110032,101990.0,101980.0,0.0654]
[1750661141729,0.80110022,101990.0,101980.0,0.0654]
[1750661141930,0.78149046,101990.0,101980.0,0.0654]
[1750661142162,0.80109896,101990.0,101980.0,0.0654]
[1750661142371,0.79129447,101990.0,101980.0,0.0654]
[1750661142585,0.76603499,101990.0,101980.0,0.0654]
[1750661143283,0.77583939,101990.0,101980.0,0.0654]
[1750661143743,0.74642668,101990.0,101980.0,0.0654]
[1750661144006,0.41393269,101990.0,101980.0,0.06661]
[1750661144222,0.73188583,101990.0,101980.0,0.06661]
[1750661144627,0.68692583,101990.0,101980.0,0.06661]
[1750661144830,0.73188583,101990.0,101980.0,0.06661]
[1750661146915,0.41393269,101990.0,101980.0,0.06661]
[1750661147148,0.73188583,101990.0,101980.0,0.06661]
[1750661147567,0.70837596,101990.0,101980.0,0.06661]
[1750661147796,0.72445051,101990.0,101980.0,0.06661]
[1750661148194,0.71756141,101990.0,101980.0,0.06661]
[1750661148403,0.40649736,101990.0,101980.0,0.06661]
[1750661148618,0.7244505,101990.0,101980.0,0.06661]
[1750661148835,0.78593789,101990.0,101980.0,0.0654]
[1750661149049,0.79129319,101990.0,101980.0,0.0654]
[1750661149255,0.80109759,101990.0,101980.0,0.0654]
[1750661149880,0.79129319,101990.0,101980.0,0.0654]
[1750661150327,0.78148899,101990.0,101980.0,0.0654]
[1750661150557,0.7745999,101990.0,101980.0,0.0654]
[1750661150768,0.78148825,101990.0,101980.0,0.0654]
[1750661151444,0.78148829,101990.0,101980.0,0.0654]
[1750661151880,0.80109766,101990.0,101980.0,0.0654]
[1750661154521,0.81090244,101990.0,101980.0,0.0654]
[1750661155600,0.84025127,101990.0,101980.0,0.0654]
[1750661156635,0.83044649,101990.0,101980.0,0.0654]
[1750661156858,0.8206418,101990.0,101980.0,0.0654]
[1750661157089,0.83044639,101990.0,101980.0,0.0654]
[1750661157293,0.83045198,101990.0,101980.0,0.0654]
[1750661158419,0.84025686,101990.0,101980.0,0.0654]
[1750661158555,0.84025676,101990.0,101980.0,0.0654]
[1750661158768,0.83045198,101990.0,101980.0,0.0654]
[1750661158979,0.84025667,101990.0,101980.0,0.0654]
[1750661159788,0.83045198,101990.0,101980.0,0.0654]
[1750661159975,0.80227434,101990.0,101980.0,0.0654]
[1750661160203,0.83045796,101990.0,101980.0,0.0654]
[1750661160417,0.82065318,101990.0,101980.0,0.0654]
[1750661160626,0.83045767,101990.0,101980.0,0.0654]
[1750661161056,0.84026226,101990.0,101980.0,0.0654]
[1750661161262,0.85006704,101990.0,101980.0,0.0654]
[1750661161474,0.85006695,101990.0,101980.0,0.0654]
[1750661161723,0.83045767,101990.0,101980.0,0.0654]
[1750661161935,0.84026236,101990.0,101980.0,0.0654]
[1750661162144,0.83046107,101990.0,101980.0,0.0654]
[1750661162338,0.84026566,101990.0,101980.0,0.0654]
[1750661162647,0.81499344,101990.0,101980.0,0.0654]
[1750661162871,0.83046426,101990.0,101980.0,0.0654]
[1750661163496,0.83046228,101990.0,101980.0,0.0654]
[1750661165619,0.83045949,101990.0,101980.0,0.0654]
[1750661166677,0.84026418,101990.0,101980.0,0.0654]
[1750661168129,0.83045949,101990.0,101980.0,0.0654]
[1750661168343,0.84026418,101990.0,101980.0,0.0654]
[1750661168552,0.83046141,101990.0,101980.0,0.0654]
[1750661168986,0.8402661,101990.0,101980.0,0.0654]
[1750661169425,0.83046141,101990.0,101980.0,0.0654]
[1750661169636,0.8402661,101990.0,101980.0,0.0654]
[1750661170053,0.84026443,101990.0,101980.0,0.0654]
[1750661170261,0.83045974,101990.0,101980.0,0.0654]
[1750661170763,0.83045983,101990.0,101980.0,0.0654]
[1750661171188,0.84026442,101990.0,101980.0,0.0654]
[1750661172699,0.83045983,101990.0,101980.0,0.0654]
[1750661173987,0.84026461,101990.0,101980.0,0.0654]
[1750661174200,0.82188552,101990.0,101980.0,0.0654]
[1750661174400,0.84026245,101990.0,101980.0,0.0654]
[1750661175331,0.83045786,101990.0,101980.0,0.0654]
[1750661175763,0.84026245,101990.0,101980.0,0.0654]
[1750661177540,0.84026245,101990.0,101980.0,0.06636]
[1750661177756,0.82065337,101990.0,101980.0,0.06636]
[1750661178087,0.81084897,101990.0,101980.0,0.06636]
[1750661178318,0.81084888,101990.0,101980.0,0.06636]
[1750661178541,0.78150005,101990.0,101980.0,0.06636]
[1750661178755,0.81084888,101990.0,101980.0,0.06636]
[1750661179423,0.82065318,101990.0,101980.0,0.06636]
[1750661179631,0.98137318,101990.0,101980.0,0.06636]
[1750661179834,0.97158755,101990.0,101980.0,0.06636]
[1750661180242,0.76590755,101990.0,101980.0,0.06636]
[1750661180395,0.97154755,101990.0,101980.0,0.06636]
[1750661180597,0.96174344,101990.0,101980.0,0.06636]
[1750661180827,0.97154745,101990.0,101980.0,0.06636]
[1750661181764,0.94720259,101990.0,101980.0,0.06636]
[1750661181984,0.94720294,101990.0,101980.0,0.06636]
[1750661182917,0.92881155,101990.0,101980.0,0.06636]
[1750661183140,0.94720293,101990.0,101980.0,0.06636]
[1750661187793,0.94720545,101990.0,101980.0,0.06636]
[1750661188450,1.26506915,101990.0,101980.0,0.06636]
[1750661188888,1.26507488,101990.0,101980.0,0.06636]
[1750661190139,1.27427337,101990.0,101980.0,0.06636]
[1750661190591,1.28407738,101990.0,101980.0,0.06636]
[1750661190822,1.27427337,101990.0,101980.0,0.06636]
[1750661191038,1.28407738,101990.0,101980.0,0.06636]
[1750661191249,1.27427337,101990.0,101980.0,0.06636]
[1750661191669,1.25587626,101990.0,101980.0,0.06636]
[1750661191886,1.27427324,101990.0,101980.0,0.06636]
[1750661192145,1.27427316,101990.0,101980.0,0.06636]
[1750661194709,1.27427294,101990.0,101980.0,0.06636]
[1750661195989,1.27427307,101990.0,101980.0,0.06636]
[1750661198911,1.27427478,101990.0,101980.0,0.06636]
[1750661200494,1.27427602,101990.0,101980.0,0.06636]
[1750661201323,1.28408003,101990.0,101980.0,0.06636]
[1750661201658,1.28408049,101990.0,101980.0,0.06636]
[1750661202173,1.27427648,101990.0,101980.0,0.06636]
[1750661204757,0.75072806,101990.0,101980.0,0.06636]
[1750661204942,0.06347081,101990.0,101980.0,0.06636]
[1750661205120,0.72137923,101990.0,101980.0,0.06636]
[1750661205326,0.69898,101990.0,101980.0,0.06636]
[1750661205547,0.69798,101990.0,101980.0,0.06336]
[1750661205747,0.69798,101990.0,101980.0,0.06736]
[1750661206068,0.67446988,101990.0,101980.0,0.06336]
[1750661206268,0.67746991,101990.0,101980.0,0.06336]
[1750661206505,0.67846991,101990.0,101980.0,0.06936]
[1750661207127,0.88390991,101990.0,101980.0,0.06936]
[1750661207350,0.90230629,101990.0,101980.0,0.06936]
[1750661207557,0.92285004,101990.0,101980.0,0.06936]
[1750661208048,0.92385004,101990.0,101980.0,0.06936]
[1750661208249,0.88190991,101990.0,101980.0,0.06936]
[1750661209010,0.88190773,101990.0,101980.0,0.06936]
[1750661210251,1.24174169,101990.0,101980.0,0.0684]
[1750661210654,1.2325415,101990.0,101980.0,0.0684]
[1750661210869,1.24173613,101990.0,101980.0,0.0684]
[1750661211109,1.0741503,101990.0,101980.0,0.0684]
[1750661212299,1.07414993,101990.0,101980.0,0.0684]
[1750661212520,1.07414993,101990.0,101980.0,0.06936]
[1750661214809,1.07414961,101990.0,101980.0,0.06936]
[1750661215027,1.05576067,101990.0,101980.0,0.06936]
[1750661215238,1.07414937,101990.0,101980.0,0.06936]
[1750661217952,1.05805905,101990.0,101980.0,0.06936]
[1750661218173,1.07414639,101990.0,101980.0,0.06936]
[1750661218607,1.07414299,101990.0,101980.0,0.06936]
[1750661219038,0.43832615,101990.0,101980.0,0.06936]
[1750661219255,1.07414299,101990.0,101980.0,0.06936]
[1750661219690,1.07414368,101990.0,101980.0,0.06936]
[1750661220375,1.08394779,101990.0,101980.0,0.0373]
[1750661220844,1.08394538,101990.0,101980.0,0.0373]
[1750661221069,1.08394538,101990.0,101980.0,0.068]
[1750661221298,1.08394528,101990.0,101980.0,0.068]
[1750661221963,1.07414127,101990.0,101980.0,0.068]
[1750661222185,0.75583285,101990.0,101980.0,0.068]
[1750661222622,0.75583285,101990.0,101980.0,0.06896]
[1750661223085,0.58246662,101990.0,101980.0,0.006]
[1750661223312,0.35454085,101970.0,101960.0,0.0646]
[1750661223538,1.20003183,101970.0,101960.0,0.0646]
[1750661224261,1.20003183,101970.0,101960.0,0.06556]
[1750661224477,1.21009842,101970.0,101960.0,0.06556]
[1750661224703,1.18657671,101970.0,101960.0,0.06556]
[1750661224934,1.18657662,101970.0,101960.0,0.06556]
[1750661225189,1.17777068,101970.0,101960.0,0.07056]
[1750661225426,0.88935113,101970.0,101960.0,0.07056]
[1750661225885,0.87097118,101970.0,101960.0,0.07056]
[1750661226101,0.66593118,101970.0,101960.0,0.07056]
[1750661226345,0.34789248,101970.0,101960.0,0.07056]
[1750661226563,0.341,101970.0,101960.0,0.07056]
[1750661226798,0.6590387,101970.0,101960.0,0.07056]
[1750661231119,0.3180387,101970.0,101960.0,0.07056]
[1750661231823,0.32492199,101970.0,101960.0,0.07056]
[1750661232258,0.32492145,101970.0,101960.0,0.07056]
[1750661233089,0.66492145,101970.0,101960.0,0.07056]
[1750661236372,0.66496145,101970.0,101960.0,0.07056]
[1750661238639,0.6580787,101970.0,101960.0,0.07056]
[1750661238863,0.66496057,101970.0,101960.0,0.07056]
[1750661239566,0.66496057,101970.0,101960.0,0.077616]
[1750661239567,0.00692187,101970.0,101960.0,0.077616]
[1750661239800,0.34004,101970.0,101960.0,0.077616]
[1750661241907,0.34004,101970.0,101960.0,0.07056]
[1750661243188,4e-05,101970.0,101960.0,0.49134978]
[1750661243386,4e-05,101970.0,101960.0,0.48889809]
[1750661243667,0.3180787,101970.0,101960.0,0.07056]
[1750661244364,0.3180787,101970.0,101960.0,0.07456]
[1750661244585,4e-05,101970.0,101960.0,0.07456]
[1750661244812,4e-05,101970.0,101960.0,0.07056]
[1750661245271,0.00104,101970.0,101960.0,0.07656]
[1750661245480,0.00104,101970.0,101960.0,0.07156]
[1750661245698,0.00304,101970.0,101960.0,0.08156]
[1750661249678,0.6610787,101970.0,101960.0,0.08156]
[1750661258185,0.6600787,101970.0,101960.0,0.07556]
[1750661258413,0.6580787,101970.0,101960.0,0.06556]
[1750661258732,0.6590787,101970.0,101960.0,0.07456]
[1750661259146,0.6590787,101970.0,101960.0,0.0736]
[1750661259356,0.9771174,101970.0,101960.0,0.0736]
[1750661259578,0.9781174,101970.0,101960.0,0.0786]
[1750661259786,0.98499796,101970.0,101960.0,0.0786]
[1750661259991,1.14567796,101970.0,101960.0,0.0786]
[1750661261251,1.14567796,101970.0,101960.0,0.014]
[1750661261252,1.16939247,101970.0,101960.0,0.014]
[1750661261461,1.22693469,101970.0,101960.0,0.014]
[1750661261671,1.22693398,101970.0,101960.0,0.014]
[1750661261879,1.23674003,101970.0,101960.0,0.014]
[1750661262103,1.24654635,101970.0,101960.0,0.014]
[1750661262537,1.2269339,101970.0,101960.0,0.014]
[1750661262965,1.23674003,101970.0,101960.0,0.014]
[1750661263693,1.23574003,101970.0,101960.0,0.009]
[1750661264040,1.21739297,101970.0,101960.0,0.01]
[1750661264256,1.23573342,101970.0,101960.0,0.01]
[1750661264455,1.23573342,101970.0,101960.0,0.009]
[1750661264670,1.23473342,101970.0,101950.0,0.0658]
[1750661264886,0.3619987,101960.0,101950.0,0.0658]
[1750661265241,0.04396,101960.0,101950.0,0.0658]
[1750661265365,0.3619987,101960.0,101950.0,0.0658]
[1750661265569,0.04396,101960.0,101950.0,0.0658]
[1750661267524,0.34644365,101960.0,101950.0,0.07085]
[1750661267728,0.55108365,101960.0,101950.0,0.07085]
[1750661267927,0.58058665,101960.0,101950.0,0.07085]
[1750661268496,0.37694665,101960.0,101950.0,0.0768]
[1750661268692,0.58158665,101960.0,101950.0,0.07785]
[1750661268909,0.19008495,101960.0,101950.0,0.07785]
[1750661269096,0.02940495,101960.0,101950.0,0.07785]
[1750661270338,0.001,101960.0,101950.0,0.07785]
[1750661272796,0.3190387,101960.0,101950.0,0.0768]
[1750661273002,0.3190387,101960.0,101950.0,0.07801]
[1750661275381,0.3190387,101960.0,101950.0,0.0768]
[1750661275973,0.3190787,101960.0,101950.0,0.0768]
[1750661276333,0.3190787,101960.0,101950.0,0.07801]
[1750661281979,0.3259428,101960.0,101950.0,0.07801]
[1750661282190,0.3190787,101960.0,101950.0,0.07801]
[1750661282394,0.3259428,101960.0,101950.0,0.07801]
[1750661282824,0.32594276,101960.0,101950.0,0.07801]
[1750661284457,0.32594276,101960.0,101950.0,0.0768]
[1750661285281,0.32594543,101960.0,101950.0,0.0768]
[1750661287691,0.32594543,101960.0,101950.0,0.07750654]
[1750661290593,0.34429012,101960.0,101950.0,0.07750654]
[1750661290993,0.38806265,101960.0,101950.0,0.07750654]
[1750661291700,0.36971796,101960.0,101950.0,0.07750654]
[1750661293765,0.36971729,101960.0,101950.0,0.07750654]
[1750661293967,0.37888875,101960.0,101950.0,0.07750654]
[1750661294663,0.01709005,101960.0,101950.0,0.07750654]
[1750661294872,0.33512875,101960.0,101950.0,0.07750654]
[1750661295318,0.33512789,101960.0,101950.0,0.07750654]
[1750661296835,0.33512373,101960.0,101950.0,0.07750654]
[1750661299769,0.33512565,101960.0,101950.0,0.07750654]
[1750661300273,0.33512609,101960.0,101950.0,0.07750654]
[1750661301164,0.01708739,101960.0,101950.0,0.07750654]
[1750661301395,0.33512509,101960.0,101950.0,0.07750654]
[1750661302090,0.35347238,101960.0,101950.0,0.07750654]
[1750661303772,0.37695125,101960.0,101950.0,0.07750654]
[1750661305641,0.37695434,101960.0,101950.0,0.07750654]
[1750661308316,0.69501006,101960.0,101950.0,0.07750654]
[1750661308525,0.69501057,101960.0,101950.0,0.07750654]
[1750661309185,0.70481756,101960.0,101950.0,0.07750654]
[1750661309924,0.71462421,101960.0,101950.0,0.07750654]
[1750661310114,0.95008903,101960.0,101950.0,0.07750654]
[1750661310316,0.93039319,101960.0,101950.0,0.07750654]
[1750661310740,1.2900872,101960.0,101950.0,0.07629654]
[1750661311428,1.6036928,101960.0,101950.0,0.07629654]
[1750661311652,1.6036928,101960.0,101950.0,0.011]
[1750661311862,1.63304163,101960.0,101950.0,0.011]
[1750661312510,0.55581253,101940.0,101930.0,0.0307]
[1750661312728,1.76273299,101940.0,101930.0,0.0629]
[1750661312961,1.44468578,101940.0,101930.0,0.0629]
[1750661313814,1.44468578,101940.0,101930.0,0.06336282]
[1750661314255,1.43482034,101940.0,101930.0,0.06336282]
[1750661314468,1.43524038,101940.0,101930.0,0.06336282]
[1750661314681,1.43624038,101940.0,101930.0,0.07036282]
[1750661315550,1.41276151,101940.0,101930.0,0.07236282]
[1750661315749,1.43617865,101940.0,101930.0,0.07236282]
[1750661316371,1.41276151,101940.0,101930.0,0.07236282]
[1750661316789,1.39446061,101940.0,101930.0,0.07236282]
[1750661316981,1.38759778,101940.0,101930.0,0.07236282]
[1750661317188,1.39445397,101940.0,101930.0,0.07236282]
[1750661319079,1.4178486,101940.0,101930.0,0.07236282]
[1750661319301,1.43238945,101940.0,101930.0,0.04016282]
[1750661319497,1.43238138,101940.0,101930.0,0.00956282]
[1750661319910,1.43888138,101940.0,101930.0,0.00956282]
[1750661320144,1.43238138,101940.0,101930.0,0.00956282]
[1750661320535,1.43888138,101940.0,101930.0,0.00956282]
[1750661320750,1.75713861,101940.0,101930.0,0.00956282]
[1750661320958,0.5558546,101920.0,101910.0,0.06013718]
[1750661321121,1.37247141,101920.0,101910.0,0.06018361]
[1750661321332,1.05421418,101920.0,101910.0,0.06018361]
[1750661321737,1.38921174,101920.0,101910.0,0.06018361]
[1750661322034,1.40375259,101920.0,101910.0,4.643e-05]
[1750661322379,1.40575259,101920.0,101910.0,0.00404643]
[1750661322878,1.40574251,101920.0,101910.0,0.00204643]
[1750661323116,1.44109621,101920.0,101910.0,0.00204643]
[1750661323323,1.44109621,101920.0,101900.0,0.0001]
[1750661323324,0.56060482,101910.0,101900.0,0.0001]
[1750661323497,1.24759731,101910.0,101900.0,0.0001]
[1750661324103,1.40807731,101910.0,101900.0,0.0314]
[1750661324521,1.40807731,101910.0,101900.0,0.0001]
[1750661324728,1.41007564,101910.0,101900.0,0.0001]
[1750661325609,1.41006693,101910.0,101900.0,0.0001]
[1750661325770,1.41106693,101910.0,101900.0,0.0001]
[1750661326170,1.42306693,101910.0,101900.0,0.0001]
[1750661326387,1.42246693,101910.0,101900.0,0.0001]
[1750661326795,1.41106693,101910.0,101900.0,0.0001]
[1750661328470,1.41106253,101910.0,101900.0,0.0001]
[1750661328698,1.41006253,101910.0,101900.0,0.0001]
[1750661329153,1.41106253,101910.0,101900.0,0.0001]
[1750661329329,1.40906253,101910.0,101900.0,0.0001]
[1750661329529,1.40906293,101910.0,101900.0,0.0001]
[1750661330110,1.20299896,101910.0,101900.0,0.0001]
[1750661330304,1.40906293,101910.0,101900.0,0.0001]
[1750661330595,1.41406293,101910.0,101900.0,0.0001]
[1750661331015,1.40723928,101910.0,101900.0,0.0333]
[1750661331227,1.05951875,101910.0,101900.0,0.0333]
[1750661331443,1.05951876,101910.0,101900.0,0.0333]
[1750661332552,1.08904076,101910.0,101900.0,0.0333]
[1750661332962,1.08904076,101910.0,101900.0,0.0001]
[1750661333191,1.44362161,101910.0,101900.0,0.0001]
[1750661333400,0.86434143,101900.0,101890.0,0.0331]
[1750661333616,1.02486143,101900.0,101890.0,0.0331]
[1750661333829,1.35293191,101900.0,101890.0,0.0331]
[1750661334021,1.07101698,101900.0,101890.0,0.0331]
[1750661334297,1.38927421,101900.0,101890.0,0.033]
[1750661334511,1.38927422,101900.0,101890.0,0.033]
[1750661334726,1.41888042,101900.0,101890.0,0.033]
[1750661334937,1.26136042,101900.0,101890.0,0.041828]
[1750661335149,1.14710319,101900.0,101890.0,0.033]
[1750661335371,1.15691673,101900.0,101890.0,0.034]
[1750661335586,1.15009642,101900.0,101890.0,0.034]
[1750661336210,1.15009642,101900.0,101890.0,0.0672]
[1750661336419,1.15691658,101900.0,101890.0,0.0672]
[1750661336634,1.14710304,101900.0,101890.0,0.0672]
[1750661336850,1.14706304,101900.0,101890.0,0.0672]
[1750661337035,0.93328979,101900.0,101890.0,0.0672]
[1750661337276,1.44569303,101900.0,101890.0,0.0672]
[1750661337484,1.24173303,101900.0,101890.0,0.0672]
[1750661337694,1.4456967,101900.0,101890.0,0.0672]
[1750661338343,1.46023755,101900.0,101890.0,0.034]
[1750661339167,1.46023755,101900.0,101890.0,0.001]
[1750661339380,1.48354501,101900.0,101890.0,0.001]
[1750661340208,1.48355053,101900.0,101890.0,0.001]
[1750661341051,1.47672182,101900.0,101890.0,0.0316]
[1750661341193,1.48356129,101900.0,101890.0,0.0316]
[1750661341408,0.84704683,101900.0,101890.0,0.0316]
[1750661341602,1.48356129,101900.0,101890.0,0.0316]
[1750661342616,1.48356049,101900.0,101890.0,0.0316]
[1750661342827,1.48356046,101900.0,101890.0,0.0316]
[1750661343034,1.48360046,101900.0,101890.0,0.0316]
[1750661343238,0.87632993,101900.0,101890.0,0.0316]
[1750661343450,1.51284439,101900.0,101890.0,0.0316]
[1750661344300,1.51284843,101900.0,101890.0,0.0316]
[1750661345643,0.54610461,101890.0,101880.0,0.08688]
[1750661345890,0.53630938,101880.0,101870.0,0.0318]
[1750661346136,0.75638554,101880.0,101870.0,0.0318]
[1750661346375,0.76620033,101880.0,101870.0,0.0318]
[1750661346598,0.78591354,101880.0,101870.0,0.0318]
[1750661347269,0.78605211,101880.0,101870.0,0.0318]
[1750661347505,1.42256657,101880.0,101870.0,0.03298]
[1750661347726,1.41275168,101880.0,101870.0,0.03298]
[1750661347950,1.41575168,101880.0,101870.0,0.03298]
[1750661348191,1.41579168,101880.0,101870.0,0.03298]
[1750661348443,1.25531168,101880.0,101870.0,0.03298]
[1750661348675,1.27802501,101880.0,101870.0,0.06568]
[1750661348904,1.51147025,101880.0,101870.0,0.06568]
[1750661349132,1.51147015,101880.0,101870.0,0.06568]
[1750661349580,1.51147006,101880.0,101870.0,0.06568]
[1750661349791,1.51147083,101880.0,101870.0,0.06568]
[1750661349997,1.51147092,101880.0,101870.0,0.06568]
[1750661350634,1.50165614,101880.0,101870.0,0.06568]
[1750661352312,1.29364738,101880.0,101870.0,0.06568]
[1750661352594,1.48995676,101880.0,101870.0,0.0645]
[1750661353584,1.48014168,101880.0,101870.0,0.0645]
[1750661354787,1.25651113,101880.0,101870.0,0.0645]
[1750661354998,1.49977077,101880.0,101870.0,0.0645]
[1750661355466,1.50958623,101880.0,101870.0,0.0645]
[1750661355706,1.49977163,101880.0,101870.0,0.0645]
[1750661355937,1.48995684,101880.0,101870.0,0.0645]
[1750661356435,1.48995684,101880.0,101870.0,0.0313]
[1750661356436,1.82764302,101880.0,101870.0,0.0313]
[1750661356654,1.82764302,101880.0,101870.0,0.0616]
[1750661357127,1.82079116,101880.0,101870.0,0.0616]
[1750661357350,1.82764907,101880.0,101870.0,0.0616]
[1750661358861,0.54614488,101870.0,101860.0,0.00132]
[1750661359083,1.38312056,101870.0,101860.0,0.00132]
[1750661359343,1.38312056,101870.0,101860.0,0.0001]
[1750661359344,1.37330471,101870.0,101860.0,0.0001]
[1750661359596,1.37330471,101870.0,101860.0,0.00132]
[1750661361003,1.37530471,101870.0,101860.0,0.00132]
[1750661361274,1.37630471,101870.0,101860.0,0.00332]
[1750661361516,1.37630471,101870.0,101860.0,0.0021]
[1750661362462,1.40454864,101870.0,101860.0,0.0001]
[1750661362681,1.40454864,101870.0,101860.0,0.0302]
[1750661362927,1.40554864,101870.0,101860.0,0.0312]
[1750661363161,0.62818646,101870.0,101860.0,0.0644]
[1750661363397,1.12111976,101870.0,101860.0,0.0644]
[1750661363620,1.11911976,101870.0,101860.0,0.0644]
[1750661363884,1.44037699,101870.0,101860.0,0.0644]
[1750661365918,1.44037124,101870.0,101860.0,0.0644]
[1750661366687,0.8887455,101870.0,101860.0,0.070856]
[1750661366892,1.10248106,101870.0,101860.0,0.0644]
[1750661367111,1.11229681,101870.0,101860.0,0.0644]
[1750661367334,1.15164185,101870.0,101860.0,0.0644]
[1750661367575,1.15164185,101870.0,101860.0,0.06562]
[1750661367787,1.1614579,101870.0,101860.0,0.06562]
[1750661367996,1.15164176,101870.0,101860.0,0.06562]
[1750661368211,1.1614579,101870.0,101860.0,0.06562]
[1750661368643,1.17127423,101870.0,101860.0,0.06562]
[1750661368891,1.1614579,101870.0,101860.0,0.06562]
[1750661369097,0.92586585,101870.0,101860.0,0.06562]
[1750661369782,0.90255839,101870.0,101860.0,0.06562]
[1750661370734,0.69863839,101870.0,101860.0,0.06562]
[1750661370941,0.32225723,101870.0,101860.0,0.08400871]
[1750661371387,0.66225723,101870.0,101860.0,0.08400871]
[1750661372091,0.65825723,101870.0,101860.0,0.08300871]
[1750661372353,0.65925723,101870.0,101860.0,0.08500871]
[1750661373308,0.65925723,101870.0,101860.0,0.06662]
[1750661374028,0.65925723,101870.0,101860.0,0.073298]
[1750661374746,0.66125723,101870.0,101860.0,0.073298]
[1750661375951,0.343,101870.0,101860.0,0.073298]
[1750661376187,0.66125723,101870.0,101860.0,0.06662]
[1750661389498,0.32125723,101870.0,101860.0,0.06662]
[1750661391288,0.32125723,101870.0,101860.0,0.06612]
[1750661391765,0.35078323,101870.0,101860.0,0.06612]
[1750661392428,0.35078323,101870.0,101860.0,0.0021]
[1750661392429,1.09499744,101870.0,101860.0,0.0021]
[1750661392656,1.13781319,101870.0,101860.0,0.0021]
[1750661392888,1.175374,101870.0,101860.0,0.0021]
[1750661393105,0.86693272,101870.0,101860.0,0.0021]
[1750661393320,1.18518995,101870.0,101860.0,0.0021]
[1750661393535,1.19500599,101870.0,101860.0,0.0021]
[1750661393752,0.86693272,101870.0,101860.0,0.0021]
[1750661393971,0.77797545,101870.0,101860.0,0.0021]
[1750661394375,0.7877913,101870.0,101860.0,0.0021]
[1750661394614,0.77797545,101870.0,101860.0,0.0021]
[1750661394831,0.77798012,101870.0,101860.0,0.0021]
[1750661395385,1.09623595,101870.0,101860.0,0.0021]
[1750661395590,0.76816297,101870.0,101860.0,0.0021]
[1750661395798,0.76816287,101870.0,101860.0,0.0021]
[1750661396210,0.73746287,101870.0,101860.0,0.0021]
[1750661397453,0.89840731,101870.0,101860.0,0.0021]
[1750661398305,0.65825723,101860.0,101850.0,0.06214]
[1750661399351,0.68778523,101860.0,101850.0,0.06214]
[1750661399784,0.031528,101860.0,101850.0,0.06214]
[1750661400004,0.34978523,101860.0,101850.0,0.06214]
[1750661400653,0.35078523,101860.0,101850.0,0.06514]
[1750661401083,0.35078523,101860.0,101850.0,0.06759442]
[1750661401084,0.003,101860.0,101850.0,0.06759442]
[1750661401300,0.003,101860.0,101850.0,0.22194102]
[1750661401521,0.003,101860.0,101850.0,0.2194866]
[1750661402008,0.003,101860.0,101850.0,0.53774383]
[1750661403315,0.003,101860.0,101850.0,0.2194866]
[1750661403531,0.003,101860.0,101850.0,0.53774383]
[1750661406136,0.003,101860.0,101850.0,0.2194866]
[1750661408876,0.003,101860.0,101850.0,0.23402745]
[1750661409522,0.003,101860.0,101850.0,0.55228468]
[1750661410200,0.003,101860.0,101850.0,0.23402745]
[1750661410410,0.003,101860.0,101850.0,0.71268468]
[1750661410827,0.003,101860.0,101850.0,0.74219968]
[1750661411240,0.002,101860.0,101850.0,0.73919968]
[1750661411675,0.003,101860.0,101850.0,0.74219968]
[1750661411884,0.001,101860.0,101850.0,0.74219968]
[1750661412298,0.003,101860.0,101850.0,1.16045691]
[1750661412512,0.001,101860.0,101850.0,1.16045691]
[1750661412721,0.003,101860.0,101850.0,1.16045691]
[1750661412932,0.002,101860.0,101850.0,1.15745691]
[1750661413379,0.003,101860.0,101850.0,1.18309353]
[1750661413559,0.003,101860.0,101850.0,1.16345691]
[1750661414143,0.003,101860.0,101850.0,1.19307356]
[1750661414322,0.34004,101890.0,101850.0,1.19307356]
[1750661414323,0.17407863,101890.0,101850.0,1.19307356]
[1750661414578,0.07914132,101880.0,101870.0,0.37915723]
[1750661414783,0.07914132,101880.0,101870.0,0.68776228]
[1750661415190,0.07914132,101880.0,101870.0,0.36950505]
[1750661416759,0.08114132,101880.0,101870.0,0.36950505]
[1750661417574,0.08114132,101880.0,101870.0,0.37065505]
[1750661418023,0.08214132,101880.0,101870.0,0.37465505]
[1750661418955,0.003,101880.0,101870.0,0.3891959]
[1750661433224,0.00304,101880.0,101870.0,0.3891959]
[1750661442122,0.00304,101880.0,101870.0,0.70745313]
[1750661446479,0.00304,101880.0,101870.0,1.05025313]
[1750661447102,0.00204,101880.0,101870.0,1.04625313]
[1750661447526,0.00304,101880.0,101870.0,1.05225313]
[1750661448661,0.00104,101880.0,101870.0,1.05225313]
[1750661449078,0.00204,101880.0,101870.0,1.05825313]
[1750661449305,4e-05,101890.0,101880.0,0.3339656]
[1750661449509,4e-05,101890.0,101880.0,1.18175411]
[1750661449722,4e-05,101890.0,101880.0,1.20138437]
[1750661449936,4e-05,101890.0,101880.0,1.19156929]
[1750661450148,4e-05,101890.0,101880.0,1.21119906]
[1750661450361,4e-05,101890.0,101880.0,1.60119906]
[1750661450566,0.00104,101890.0,101880.0,1.60719906]
[1750661451448,0.00204,101890.0,101880.0,1.60538427]
[1750661451660,0.00204,101890.0,101880.0,1.61519858]
[1750661452090,0.00204,101890.0,101880.0,1.5955689]
[1750661452327,0.00204,101890.0,101880.0,1.60538379]
[1750661452790,0.00204,101890.0,101880.0,1.61519858]
[1750661453204,0.00204,101890.0,101880.0,1.60538379]
[1750661453403,0.00204,101890.0,101880.0,1.61519858]
[1750661456237,0.00204,101890.0,101880.0,1.90799858]
[1750661456892,4e-05,101900.0,101890.0,0.99517331]
[1750661457108,4e-05,101900.0,101890.0,1.67422932]
[1750661457540,4e-05,101900.0,101890.0,1.70485932]
[1750661458403,0.00104,101900.0,101890.0,1.71385932]
[1750661458610,0.00104,101900.0,101890.0,1.70885932]